bitfinex/quotes_SOLUSD_20240615
["timestamp","ask_amount","ask_price","bid_price","bid_amount"]
[1718443143427,5.66,144.07,144.02,20.51]
[1718443143723,5.66,144.07,144.03,0.17]
[1718443143923,0.05102073,144.06,144.03,0.17]
[1718443144410,0.05102073,144.06,144.03,0.34]
[1718443144611,0.05102073,144.06,144.04,0.17]
[1718443144818,0.05102073,144.06,144.04,0.34]
[1718443145024,0.05102073,144.06,144.05,0.17]
[1718443152257,0.05102073,144.06,144.02,20.0]
[1718443152939,0.05102073,144.06,144.02,25.66]
[1718443153415,0.05102073,144.06,144.03,0.34]
[1718443153617,0.05102073,144.06,144.04,0.34]
[1718443154613,0.05102073,144.06,144.03,0.17]
[1718443154841,5.66,144.05,143.97,100.0]
[1718443155139,5.66,144.04,143.98,13.99393117]
[1718443155352,5.66,144.04,143.99,8.33393117]
[1718443156342,5.66,144.05,143.99,13.99393117]
[1718443156640,5.66,144.05,144.0,20.17]
[1718443160546,5.66,144.04,144.0,20.17]
[1718443160846,5.66,144.04,144.0,0.17]
[1718443161231,5.66,144.04,143.99,20.17]
[1718443162853,5.66,144.04,144.0,1.38863382]
[1718443163724,5.66,144.05,144.0,1.38863382]
[1718443163930,5.66,144.05,144.01,0.17]
[1718443167670,15.1275,144.06,144.01,0.17]
[1718443167869,5.66,144.04,144.01,0.17]
[1718443169964,5.66,144.04,144.0,0.34]
[1718443173981,5.66,144.04,144.0,0.17]
[1718443174288,5.66,144.03,144.0,0.17]
[1718443180258,15.1275,144.06,144.0,0.17]
[1718443180460,5.66,144.04,144.0,0.17]
[1718443183363,5.66,144.03,144.0,0.17]
[1718443190189,5.66,144.02,143.97,20.17]
[1718443190378,5.66,144.02,143.98,0.17]
[1718443200407,37.7675,144.06,143.98,0.34]
[1718443200703,5.66,144.04,143.98,7.00873198]
[1718443200991,5.66,144.04,143.99,20.0]
[1718443201201,5.66,144.04,144.0,1.00992895]
[1718443201577,5.66,144.04,144.0,1.51417286]
[1718443204687,9.227,144.08,144.0,1.51417286]
[1718443204891,5.66,144.05,144.0,1.51417286]
[1718443205502,34.3346,144.1,144.0,1.51417286]
[1718443205503,16.3604,144.1,144.01,7.38849908]
[1718443205678,16.3604,144.1,144.02,21.55828573]
[1718443205679,5.66,144.07,144.02,21.55828573]
[1718443206079,5.66,144.08,144.02,27.21828573]
[1718443206304,5.66,144.07,144.02,21.55828573]
[1718443209784,5.66,144.06,144.02,20.17]
[1718443210094,20.5431,144.09,144.03,20.0]
[1718443210291,5.66,144.05,144.01,20.0]
[1718443211006,5.66,144.05,144.02,1.14331405]
[1718443211508,5.66,144.05,144.03,0.17]
[1718443211709,5.66,144.05,144.02,0.17]
[1718443217611,5.66,144.06,144.02,0.17]
[1718443218499,5.66,144.05,144.02,0.17]
[1718443221034,5.66,144.06,144.02,0.17]
[1718443224407,5.66,144.05,144.02,0.17]
[1718443225425,5.66,144.04,144.02,0.17]
[1718443227123,5.66,144.04,144.01,20.0]
[1718443233833,5.66,144.03,144.01,20.0]
[1718443235749,5.66,144.03,144.0,20.17]
[1718443243141,5.66,144.03,144.0,0.17]
[1718443250021,0.17,144.09,144.01,0.17]
[1718443250237,16.3604,144.1,144.01,0.17]
[1718443250431,5.66,144.06,144.01,20.51]
[1718443257438,5.66,144.06,144.01,20.17]
[1718443257646,5.66,144.05,144.01,20.17]
[1718443258049,5.66,144.04,144.01,20.0]
[1718443260459,5.66,144.04,143.98,5.66]
[1718443260657,5.66,144.04,144.02,20.0]
[1718443261335,5.66,144.04,143.99,20.34]
[1718443262046,7.7037,144.09,143.99,20.34]
[1718443262253,5.66,144.04,143.99,20.34]
[1718443263049,5.66,144.04,143.99,20.17]
[1718443263249,34.51,144.06,143.97,20.0]
[1718443263460,5.66,144.01,143.96,22.2181]
[1718443264054,5.66,144.0,143.96,15.9764]
[1718443264444,5.66,144.0,143.94,5.868596]
[1718443265366,5.66,143.99,143.94,0.208596]
[1718443265571,5.66,143.99,143.94,20.208596]
[1718443266673,5.66,143.99,143.95,0.17]
[1718443267178,5.66,143.98,143.95,0.17]
[1718443269985,5.66,143.98,143.94,20.208596]
[1718443278649,5.66,143.97,143.94,20.208596]
[1718443278852,5.66,143.97,143.94,0.208596]
[1718443279147,41.6988,144.02,143.94,0.208596]
[1718443279148,5.66,143.96,143.94,0.208596]
[1718443279372,5.66,143.97,143.94,0.208596]
[1718443281074,39.1301,144.02,143.94,0.208596]
[1718443281075,5.66,143.96,143.94,0.208596]
[1718443281247,5.66,143.97,143.94,0.208596]
[1718443281959,5.66,143.96,143.94,0.208596]
[1718443282675,2.5694,144.0,143.94,0.208596]
[1718443282887,5.66,143.96,143.94,0.208596]
[1718443283670,5.66,143.95,143.94,0.208596]
[1718443284572,5.66,143.96,143.94,0.208596]
[1718443285079,0.17,143.99,143.94,0.208596]
[1718443285374,5.66,143.95,143.94,0.208596]
[1718443288567,5.66,143.96,143.94,0.208596]
[1718443288769,22.81,143.99,143.94,0.208596]
[1718443288972,5.66,143.96,143.94,0.208596]
[1718443289367,7.7098,143.98,143.94,0.208596]
[1718443289565,22.81,143.99,143.94,0.208596]
[1718443289972,5.66,143.97,143.94,0.208596]
[1718443292771,5.66,143.96,143.94,0.208596]
[1718443295291,8.2296,143.99,143.94,0.208596]
[1718443295498,5.66,143.95,143.94,0.208596]
[1718443296694,0.17,143.98,143.94,0.208596]
[1718443296925,5.66,143.95,143.94,0.208596]
[1718443298700,5.83,143.95,143.94,0.208596]
[1718443298913,2.57,143.97,143.94,0.208596]
[1718443299200,5.66,143.95,143.94,0.208596]
[1718443300815,22.4495,143.98,143.94,0.208596]
[1718443300987,5.66,143.95,143.94,0.208596]
[1718443302501,22.4495,143.98,143.94,0.208596]
[1718443302815,5.66,143.95,143.94,0.208596]
[1718443305305,5.83,143.95,143.94,0.208596]
[1718443305812,8.5703,143.95,143.94,0.208596]
[1718443306197,8.7403,143.95,143.94,0.208596]
[1718443306620,13.8809,143.95,143.94,0.208596]
[1718443306797,21.08497805,143.95,143.94,0.208596]
[1718443307111,15.94437805,143.95,143.94,0.208596]
[1718443308292,6.17,143.95,143.94,0.208596]
[1718443308494,6.0,143.95,143.94,0.208596]
[1718443309511,8.5703,143.95,143.94,0.208596]
[1718443309994,21.4219,143.95,143.94,0.208596]
[1718443310216,31.8732,143.95,143.94,0.208596]
[1718443313017,8.7403,143.95,143.94,0.208596]
[1718443313533,7.20431235,143.97,143.94,0.208596]
[1718443313701,5.66,143.95,143.94,0.208596]
[1718443317128,7.20440613,143.99,143.94,0.208596]
[1718443317431,2.5694,144.0,143.94,0.208596]
[1718443317432,5.66,143.96,143.94,0.208596]
[1718443317609,2.5698,143.98,143.94,0.208596]
[1718443317806,5.66,143.95,143.94,0.208596]
[1718443326608,22.64,143.99,143.94,0.208596]
[1718443326907,5.66,143.99,143.94,0.208596]
[1718443327102,5.66,143.99,143.95,0.17]
[1718443328736,5.66,143.99,143.95,15.8134]
[1718443328934,2.5691,144.02,143.96,20.0]
[1718443329110,25.6892,144.03,143.96,20.0]
[1718443329652,7.21036222,144.04,143.97,0.51]
[1718443329949,145.0408,144.1,143.97,0.51]
[1718443329950,5.66,144.06,144.0,5.66]
[1718443330108,5.66,144.06,144.01,35.8134]
[1718443330618,41.3618,144.1,144.01,42.4237]
[1718443330840,5.66,144.07,144.01,48.0837]
[1718443332127,5.66,144.07,144.01,42.4237]
[1718443332322,5.66,144.07,144.01,48.0837]
[1718443332844,5.66,144.06,144.01,42.4237]
[1718443333274,5.66,144.03,144.01,35.6434]
[1718443333556,5.66,144.04,144.01,35.6434]
[1718443335136,5.66,144.07,144.02,0.17]
[1718443335952,5.66,144.07,144.02,6.17]
[1718443336155,5.66,144.07,144.03,20.0]
[1718443336355,5.66,144.07,144.04,0.17]
[1718443337249,5.66,144.07,144.03,0.17]
[1718443337952,5.66,144.07,144.02,20.0]
[1718443337953,2.5682,144.07,144.02,20.0]
[1718443338248,5.66,144.04,144.02,20.0]
[1718443338451,2.5683,144.06,144.02,20.0]
[1718443338452,5.66,144.03,144.02,20.0]
[1718443339351,5.66,144.04,144.02,20.0]
[1718443339656,5.66,144.03,144.02,20.0]
[1718443339856,5.66,144.04,144.02,20.0]
[1718443341360,5.66,144.04,143.97,6.6103]
[1718443341549,7.7052,144.06,143.97,6.6103]
[1718443341550,5.66,144.01,143.97,6.6103]
[1718443342745,0.34,144.07,143.97,6.6103]
[1718443342746,5.66,144.03,143.97,6.6103]
[1718443342952,5.66,144.03,143.98,0.51]
[1718443343455,5.66,144.03,143.98,20.51]
[1718443343764,5.66,144.02,143.99,20.0]
[1718443344470,5.66,144.02,143.98,20.34]
[1718443346061,5.66,144.02,143.98,20.17]
[1718443348260,5.63334608,144.02,143.98,20.17]
[1718443354372,5.66,144.06,143.98,20.17]
[1718443354561,5.66,144.03,143.98,20.17]
[1718443355379,8.2284,144.06,143.97,6.6103]
[1718443355671,5.66,144.01,143.97,6.6103]
[1718443356771,5.66,144.01,143.98,20.0]
[1718443359169,5.66,144.02,143.98,20.0]
[1718443359561,5.66,144.02,143.99,0.17]
[1718443359767,5.66,144.03,143.99,0.17]
[1718443361688,5.66,144.02,143.99,0.17]
[1718443361888,22.64,144.06,143.99,0.17]
[1718443362072,5.66,144.03,143.99,0.17]
[1718443365589,30.345,144.06,143.99,0.17]
[1718443365590,7.7051,144.06,143.99,0.17]
[1718443365760,5.66,144.03,143.99,0.17]
[1718443372697,5.66,144.02,143.98,20.0]
[1718443373098,5.66,144.01,143.98,20.0]
[1718443374796,25.6861,144.05,143.98,20.0]
[1718443375098,5.66,144.01,143.98,20.0]
[1718443382903,0.17,144.05,143.98,20.0]
[1718443383112,5.66,144.01,143.98,20.0]
[1718443386003,0.17,144.05,143.98,20.0]
[1718443386213,5.66,144.02,143.98,20.0]
[1718443392710,5.66,144.01,143.98,20.0]
[1718443393287,5.66,143.99,143.96,15.3177]
[1718443393490,5.66,143.97,143.94,0.208596]
[1718443394312,5.66,143.96,143.94,0.208596]
[1718443395015,5.66,143.95,143.94,0.208596]
[1718443395184,5.66,143.99,143.94,0.208596]
[1718443395389,5.66,143.95,143.94,0.208596]
[1718443396717,2.5699,143.98,143.94,0.208596]
[1718443396900,5.66,143.95,143.94,0.208596]
[1718443397084,25.697,143.99,143.94,0.208596]
[1718443397289,5.66,143.95,143.94,0.208596]
[1718443403223,0.17,143.97,143.94,0.208596]
[1718443403523,5.66,143.95,143.94,0.208596]
[1718443411140,7.88,143.97,143.94,0.208596]
[1718443411444,5.66,143.95,143.94,0.208596]
[1718443414333,5.83,143.95,143.94,0.208596]
[1718443414529,21.08661034,143.95,143.94,0.208596]
[1718443414729,21.08661034,143.95,143.85,16.3211]
[1718443414730,2.7406,143.94,143.85,16.3211]
[1718443414925,5.66,143.88,143.86,20.17]
[1718443415125,5.66,143.88,143.86,0.17]
[1718443416823,5.66,143.88,143.86,20.17]
[1718443418944,5.66,143.88,143.86,20.0]
[1718443419136,5.66,143.87,143.86,20.0]
[1718443420563,5.66,143.87,143.83,6.2942]
[1718443420727,5.66,143.86,143.84,20.0]
[1718443421147,5.66,143.87,143.84,20.0]
[1718443422441,5.66,143.86,143.84,20.0]
[1718443422653,5.66,143.87,143.84,20.0]
[1718443424834,5.66,143.86,143.84,20.0]
[1718443428354,0.17,143.9,143.83,20.0]
[1718443428655,5.66,143.86,143.83,20.0]
[1718443429964,48.3491,143.92,143.83,20.0]
[1718443429965,0.17,143.91,143.83,20.0]
[1718443430137,5.66,143.87,143.83,20.0]
[1718443431233,2.911,143.91,143.83,20.0]
[1718443431461,5.66,143.87,143.83,20.0]
[1718443432258,5.66,143.86,143.83,20.0]
[1718443432856,2.911,143.91,143.83,20.0]
[1718443433035,5.66,143.87,143.83,20.0]
[1718443433237,5.66,143.86,143.83,20.0]
[1718443437152,8.0532,143.91,143.83,20.0]
[1718443437463,5.66,143.87,143.83,20.0]
[1718443437760,2.9111,143.91,143.83,21.39026371]
[1718443437963,5.66,143.87,143.83,21.39026371]
[1718443440657,22.22885918,143.95,143.84,6.8795]
[1718443440860,5.66,143.9,143.85,20.34]
[1718443441044,5.66,143.9,143.86,0.17]
[1718443441768,5.66,143.89,143.86,0.17]
[1718443442362,5.66,143.9,143.86,0.17]
[1718443442565,2.5706,143.94,143.86,0.17]
[1718443442754,5.66,143.91,143.86,16.1487]
[1718443442955,5.66,143.9,143.87,20.0]
[1718443443573,19.0998,143.95,143.88,0.17]
[1718443443788,5.66,143.91,143.88,0.17]
[1718443445888,5.66,143.9,143.88,0.17]
[1718443446383,5.66,143.9,143.87,20.0]
[1718443451493,5.66,143.89,143.87,20.0]
[1718443457490,5.66,143.9,143.87,20.0]
[1718443462002,5.66,143.9,143.88,0.17]
[1718443462298,5.66,143.9,143.87,20.0]
[1718443462899,5.66,143.89,143.87,20.0]
[1718443463082,5.66,143.9,143.87,20.0]
[1718443464701,5.66,143.9,143.88,0.17]
[1718443469410,5.66,143.9,143.87,20.0]
[1718443469701,2.5707,143.93,143.87,20.0]
[1718443469702,5.66,143.89,143.87,20.0]
[1718443473694,5.66,143.88,143.87,20.0]
[1718443474017,5.66,143.89,143.87,20.0]
[1718443474312,5.66,143.9,143.87,20.0]
[1718443474514,5.66,143.89,143.87,20.0]
[1718443475789,15.4233,143.94,143.87,20.0]
[1718443475996,5.66,143.89,143.87,20.0]
[1718443476690,5.66,143.88,143.85,20.0]
[1718443479106,13.3726,143.92,143.85,20.0]
[1718443479285,5.66,143.87,143.85,20.0]
[1718443484990,5.66,143.92,143.85,20.0]
[1718443485214,5.66,143.88,143.85,20.0]
[1718443486104,5.66,143.89,143.86,0.17]
[1718443490632,2.571,143.91,143.85,20.0]
[1718443490807,5.66,143.88,143.85,20.0]
[1718443491003,5.66,143.89,143.85,20.0]
[1718443491216,5.66,143.89,143.86,0.17]
[1718443492712,5.66,143.88,143.86,0.17]
[1718443495834,13.3726,143.92,143.86,0.17]
[1718443496039,5.66,143.89,143.86,0.17]
[1718443497214,5.66,143.9,143.86,0.17]
[1718443497617,5.66,143.89,143.86,0.17]
[1718443499419,5.66,143.88,143.86,0.17]
[1718443503130,5.66,143.87,143.85,20.0]
[1718443503740,5.66,143.88,143.85,20.0]
[1718443504528,2.571,143.92,143.85,20.0]
[1718443504743,5.66,143.88,143.85,20.0]
[1718443509839,22.64,143.92,143.85,20.0]
[1718443510039,5.66,143.88,143.85,20.0]
[1718443510655,5.66,143.89,143.85,20.0]
[1718443513950,23.135,143.94,143.85,20.0]
[1718443514145,23.135,143.94,143.86,0.17]
[1718443514146,2.5706,143.94,143.86,0.17]
[1718443514368,5.66,143.91,143.86,0.34]
[1718443515050,5.66,143.9,143.86,0.34]
[1718443520347,5.66,143.89,143.86,0.34]
[1718443520754,5.66,143.9,143.86,0.34]
[1718443522273,5.66,143.94,143.88,5.66]
[1718443522472,106.626,144.01,143.88,5.66]
[1718443522473,2.5694,144.0,143.9,5.83]
[1718443522671,5.66,143.97,143.92,16.3565]
[1718443522876,5.66,143.97,143.93,21.55926479]
[1718443524074,7.7088,143.99,143.93,21.55926479]
[1718443524281,5.66,143.96,143.93,20.17]
[1718443524482,5.66,143.95,143.93,20.17]
[1718443525172,5.1396,143.98,143.93,20.0]
[1718443525372,5.66,143.94,143.93,20.0]
[1718443528591,5.66,143.95,143.93,20.0]
[1718443530276,5.66,143.96,143.93,20.0]
[1718443536463,24.6113,144.01,143.93,20.0]
[1718443536464,6.626,144.01,143.93,20.0]
[1718443536670,5.66,143.96,143.93,20.0]
[1718443540174,22.64,143.99,143.93,20.0]
[1718443540392,5.66,143.96,143.93,20.0]
[1718443542496,8.2296,143.99,143.93,20.0]
[1718443542674,5.66,143.95,143.93,20.0]
[1718443544476,5.66,143.96,143.93,20.0]
[1718443547377,5.66,143.96,143.93,21.07858922]
[1718443547580,5.66,143.97,143.93,21.07858922]
[1718443554312,2.5694,144.0,143.93,21.07858922]
[1718443554624,5.66,143.97,143.93,21.07858922]
[1718443555519,5.66,143.97,143.93,20.0]
[1718443555701,5.66,143.96,143.93,20.0]
[1718443556005,5.66,143.96,143.93,19.5]
[1718443561384,2.5694,144.0,143.93,19.5]
[1718443561584,5.66,143.96,143.93,19.5]
[1718443562706,2.7392,144.01,143.93,19.5]
[1718443563007,5.66,143.97,143.94,1.38925833]
[1718443563205,5.66,143.97,143.94,1.55925833]
[1718443566191,5.66,143.97,143.94,0.17]
[1718443567417,5.66,143.96,143.94,0.17]
[1718443567608,5.66,143.96,143.93,19.5]
[1718443569297,5.66,143.97,143.94,0.17]
[1718443573210,49.39052779,144.02,143.94,0.17]
[1718443573400,5.66,143.97,143.94,0.17]
[1718443577710,5.66,143.98,143.94,0.17]
[1718443587156,7.7077,144.01,143.94,0.17]
[1718443587441,5.66,143.98,143.94,0.17]
[1718443589157,5.66,143.96,143.93,19.5]
[1718443589330,5.66,143.95,143.93,19.5]
[1718443589531,7.7085,144.0,143.93,19.5]
[1718443589719,5.66,143.96,143.93,19.5]
[1718443590850,2.5694,144.0,143.93,19.5]
[1718443591023,5.66,143.96,143.93,19.5]
[1718443592248,7.7083,144.0,143.93,19.5]
[1718443592428,5.66,143.96,143.93,19.5]
[1718443593049,7.7083,144.0,143.93,19.5]
[1718443593235,5.66,143.96,143.93,19.5]
[1718443600353,22.64,143.99,143.93,19.5]
[1718443606862,2.5695,144.0,143.93,19.5]
[1718443607085,5.66,143.96,143.93,19.5]
[1718443612177,5.66,143.95,143.93,19.5]
[1718443612872,7.7085,144.0,143.93,19.5]
[1718443613172,5.66,143.95,143.93,19.5]
[1718443613766,5.66,143.96,143.93,19.5]
[1718443614283,9.81113892,144.01,143.93,19.5]
[1718443614488,5.66,143.96,143.93,19.5]
[1718443615882,22.64,143.99,143.94,1.38927572]
[1718443616488,5.66,143.96,143.94,1.38927572]
[1718443618477,2.5694,144.0,143.94,1.38927572]
[1718443618684,5.66,143.97,143.94,1.38927572]
[1718443619586,2.5694,144.0,143.94,1.38927572]
[1718443619961,5.66,143.97,143.94,1.38927572]
[1718443620285,7.7081,144.01,143.94,1.38927572]
[1718443620465,24.3345,144.02,143.93,19.5]
[1718443620662,5.66,143.98,143.94,0.17]
[1718443620863,5.66,143.98,143.94,46.55913361]
[1718443622663,42.1483,144.02,143.94,46.55913361]
[1718443622879,23.2907,144.03,143.95,21.38791024]
[1718443623196,5.66,143.98,143.96,46.38781383]
[1718443623370,2.5691,144.02,143.96,46.38781383]
[1718443623572,5.66,143.98,143.96,46.38781383]
[1718443623980,7.7073,144.02,143.96,46.38781383]
[1718443624183,5.66,143.98,143.96,46.38781383]
[1718443625692,5.66,143.98,143.96,45.0]
[1718443626394,15.4157,144.01,143.96,45.0]
[1718443626579,5.66,143.98,143.96,45.0]
[1718443631418,5.66,143.97,143.96,45.0]
[1718443633387,5.66,143.97,143.92,16.3565]
[1718443633593,31.3565,143.99,143.93,20.0]
[1718443633594,5.66,143.95,143.93,20.0]
[1718443634587,5.66,143.95,143.94,45.0]
[1718443634812,5.66,143.96,143.94,65.0]
[1718443634990,5.66,143.96,143.94,45.0]
[1718443635482,2.5695,144.0,143.94,45.0]
[1718443635701,5.66,143.97,143.94,45.0]
[1718443636090,122.48012662,144.02,143.94,45.0]
[1718443636091,127.61832662,144.02,143.94,45.0]
[1718443636409,5.66,143.98,143.95,20.48597393]
[1718443636608,5.66,143.98,143.96,45.0]
[1718443640707,5.66,143.97,143.96,45.0]
[1718443641087,25.2097,143.99,143.96,45.0]
[1718443641405,22.64,143.99,143.96,45.0]
[1718443641726,25.2096,143.99,143.96,45.0]
[1718443642915,22.64,143.99,143.96,45.0]
[1718443644212,25.2096,143.99,143.96,45.0]
[1718443644386,25.2096,143.99,143.92,16.5265]
[1718443644580,25.2096,143.99,143.93,65.0]
[1718443644804,30.3488,143.99,143.93,65.0]
[1718443645589,25.2096,143.99,143.93,65.0]
[1718443646083,22.64,143.99,143.93,65.0]
[1718443648232,22.64,143.99,143.93,64.97529111]
[1718443666134,6.5313,144.0,143.93,64.97529111]
[1718443666345,5.66,143.95,143.93,64.97529111]
[1718443666551,5.66,143.96,143.93,64.97529111]
[1718443667837,22.64,143.99,143.93,64.97529111]
[1718443668039,22.48012662,144.02,143.93,64.97529111]
[1718443668242,22.48012662,144.02,143.94,16.3113]
[1718443668547,5.66,144.0,143.95,65.0]
[1718443669136,5.66,143.99,143.95,65.0]
[1718443670354,7.23512662,144.02,143.95,65.0]
[1718443670529,5.66,143.99,143.95,65.0]
[1718443671947,5.66,143.98,143.95,65.0]
[1718443672446,5.66,143.97,143.95,65.0]
[1718443673162,5.66,143.96,143.95,65.0]
[1718443675660,5.66,143.96,143.95,45.0]
[1718443687441,30.3489,143.99,143.95,45.0]
[1718443687645,5.66,143.96,143.95,45.0]
[1718443691782,25.2097,143.99,143.95,45.0]
[1718443692076,5.66,143.96,143.95,45.0]
[1718443698767,5.66,143.96,143.9,16.1413]
[1718443698985,2.5698,143.98,143.91,65.17]
[1718443698986,5.66,143.94,143.91,65.17]
[1718443700285,2.5697,143.99,143.91,65.17]
[1718443700450,5.66,143.94,143.91,65.17]
[1718443702471,5.66,143.94,143.91,65.0]
[1718443702872,5.66,143.93,143.91,65.0]
[1718443703252,34.4734,143.99,143.91,65.0]
[1718443703579,5.66,143.95,143.91,65.0]
[1718443704657,32.3906,143.99,143.91,65.0]
[1718443704857,5.66,143.95,143.91,65.0]
[1718443705077,5.66,143.94,143.91,65.0]
[1718443705981,7.21874903,144.0,143.91,65.0]
[1718443706277,5.66,143.97,143.92,0.17]
[1718443707268,7.7089,143.99,143.92,0.17]
[1718443707478,5.66,143.95,143.92,0.17]
[1718443708479,7.7094,143.98,143.91,65.0]
[1718443708681,5.66,143.95,143.91,65.0]
[1718443712086,2.5697,143.99,143.91,65.0]
[1718443712296,5.66,143.95,143.91,65.0]
[1718443714500,5.66,143.96,143.91,65.0]
[1718443720470,0.17,144.0,143.91,65.0]
[1718443720692,5.66,143.96,143.91,65.0]
[1718443720888,5.66,143.97,143.91,65.0]
[1718443721506,0.17,143.99,143.91,65.0]
[1718443721707,5.66,143.97,143.91,65.0]
[1718443722588,5.66,143.97,143.92,0.17]
[1718443722773,2.7394,144.0,143.92,0.17]
[1718443722969,5.66,143.97,143.92,0.17]
[1718443723797,21.0173,144.01,143.92,0.17]
[1718443723997,5.66,143.97,143.92,0.17]
[1718443724506,5.66,143.96,143.92,0.17]
[1718443725981,5.66,143.95,143.92,0.17]
[1718443726490,5.66,143.96,143.92,0.17]
[1718443726695,22.64,143.99,143.92,0.17]
[1718443727000,15.8787,144.01,143.93,6.5451]
[1718443727305,5.66,143.98,143.94,65.0]
[1718443727898,5.66,143.97,143.94,65.0]
[1718443729172,23.5867,144.01,143.94,65.0]
[1718443729377,5.66,143.97,143.94,65.0]
[1718443733680,5.66,143.97,143.9,16.1413]
[1718443733883,5.66,143.94,143.9,16.1413]
[1718443734081,5.66,143.93,143.91,20.0]
[1718443735412,7.7091,143.99,143.92,45.0]
[1718443735711,5.66,143.95,143.91,45.0]
[1718443736507,30.3491,143.99,143.91,45.0]
[1718443736713,5.66,143.95,143.92,20.0]
[1718443736888,5.66,143.95,143.93,45.0]
[1718443739491,5.66,143.94,143.93,45.0]
[1718443740905,5.66,143.94,143.87,21.54]
[1718443741080,5.66,143.91,143.87,21.54]
[1718443742314,5.66,143.9,143.88,20.0]
[1718443742898,5.66,143.91,143.89,45.0]
[1718443744695,9.79914696,143.97,143.9,0.17]
[1718443744920,5.66,143.93,143.9,0.17]
[1718443745213,5.66,143.92,143.9,0.17]
[1718443746789,5.66,143.91,143.9,0.17]
[1718443747823,5.66,143.91,143.89,45.0]
[1718443748696,30.29083543,143.98,143.89,45.0]
[1718443748897,5.66,143.93,143.9,20.17]
[1718443749297,5.66,143.93,143.91,1.1745591]
[1718443750998,0.17,143.97,143.87,21.54]
[1718443751201,5.66,143.91,143.87,21.54]
[1718443752925,5.66,143.9,143.88,20.0]
[1718443753621,2.5704,143.95,143.88,20.0]
[1718443753809,5.66,143.9,143.88,20.0]
[1718443755619,5.66,143.89,143.86,0.17]
[1718443755826,5.66,143.88,143.85,0.17]
[1718443757529,5.66,143.88,143.85,20.17]
[1718443761202,5.66,143.89,143.85,20.17]
[1718443762308,5.66,143.88,143.85,20.17]
[1718443763939,2.5706,143.93,143.85,20.17]
[1718443764254,7.712,143.93,143.85,20.17]
[1718443764410,5.66,143.88,143.85,20.17]
[1718443765734,5.66,143.89,143.85,20.17]
[1718443771144,5.66,143.9,143.85,20.17]
[1718443771348,7.23080361,143.96,143.88,15.0198]